[Event "Croatian Team Cup Final 2022"]
[Site "Vodice"]
[Date "2022.05.18"]
[Round "1.15"]
[White "Plenca, Jadranko"]
[Black "Spiranec, Noemi"]
[Result "1-0"]
[ECO "B40"]
[WhiteElo "2443"]
[BlackElo "2044"]
[Annotator "TA"]
[PlyCount "75"]
[EventDate "2022.05.18"]
[EventType "team-tourn"]
[EventCountry "CRO"]
[SourceTitle "playchess.com"]
[Source "ChessBase"]
[SourceQuality "1"]
[TimeControl "40/5400+30:1800+30"]

{[%evp 9,75,10,10,15,33,10,19,23,12,0,6,17,27,6,27,21,41,41,39,36,37,21,35,24,35,36,56,26,55,52,57,33,42,-30,146,146,250,264,253,174,284,235,242,238,290,282,259,158,181,168,193,192,195,187,256,257,282,259,255,262,328,308,293,290,360,363,556,554]} 1. e4 {[%emt 0:00:03]} c5 {[%emt 0:00:11]} 2. Nf3 {[%emt 0:00:11]} e6 {[%emt 0:00:07]} 3. g3 {[%emt 0:00:58]} d5 {[%emt 0:03:24]} 4. exd5 {[%emt 0:00:11]} exd5 {[%emt 0:00:07]} 5. d4 {[%emt 0:00:07]} Nf6 {[%emt 0:01:42]} 6. Bg2 {[%emt 0:03:38] B40: Sicilian: 2...e6, Unusual lines.} Be7 {[%emt 0:08:49]} (6... Bg4 {seems wilder.} 7. O-O cxd4 8. Bg5 Be7) 7. O-O {[%emt 0:02:14]} O-O {[%emt 0:00:38]} 8. dxc5 $1 {[%emt 0:04:10] The position is equal. The main line 8.dxc5 scores better than 8.Nc3.} Bxc5 {[%emt 0:00:45]} 9. Nbd2 {[%emt 0:07:00]} Bf5 {[%emt 0:06:23]} 10. Nb3 {[%emt 0:02:43] [#]} Be7 $146 {[%emt 0:00:37]} ({Predecessor:} 10... Bb6 11. c3 Nc6 12. Nbd4 Be4 13. Be3 h6 14. Re1 Na5 15. Nd2 Bxg2 16. Kxg2 Nc6 {½-½ (60) Abbas,D (2279)-Sowray,P (2321) Wakefield 2016}) 11. Be3 {[%emt 0:02:44]} Qc8 {[%emt 0:10:46]} 12. Nfd4 {[%emt 0:02:15]} Bh3 {[%emt 0:00:49]} 13. Re1 {[%emt 0:02:04]} Bxg2 {[%emt 0:01:02]} 14. Kxg2 {[%emt 0:00:05]} Nc6 {[%emt 0:07:34][%cal Bb8c6,Bc6e7,Be7g6,Bg6e5,Be5c4][%mdl 32]} 15. Bg5 {[%emt 0:01:59] Strongly threatening Nxc6.} Re8 {[%emt 0:05:19]} 16. Qf3 {[%emt 0:06:30]} Ne4 {[%emt 0:10:38]} 17. Bxe7 {[%emt 0:00:23]} Nxe7 {[%emt 0:00:04]} 18. h4 {[%emt 0:05:35]} Ng6 {[%emt 0:04:23]} 19. Re2 {[%emt 0:03:57]} Ne5 {[%emt 0:01:28]} 20. Qf5 {[%emt 0:00:27]} Nc4 {[%emt 0:01:07]} 21. Qxd5 {[%emt 0:01:50]} ({White should try} 21. c3 $14) 21... Ned6 $2 {[%emt 0:02:42]} (21... Re5 $11 22. Nf5 (22. Qxe5 Nxe5 23. Rxe4 Nc4 $15) 22... Rxd5 23. Ne7+ Kf8 24. Nxc8 Re5) 22. Rae1 $16 {[%emt 0:01:54] White is more active. White stays focused until the end.} Rd8 {[%emt 0:04:13] [#]} (22... Rxe2 $16 {was called for.} 23. Rxe2 Qc7) 23. Re7 $1 $18 {[%emt 0:06:01]} Nb6 {[%emt 0:05:28]} 24. Qf3 {[%emt 0:00:45][%cal Od4b5] Threatens to win with Nb5!} Qc4 {[%emt 0:01:04] Prevents Nb5.} (24... Rd7 $142 25. R7e2 h6) 25. Nf5 {[%emt 0:05:50]} Nxf5 {[%emt 0:01:34]} 26. Qxf5 {[%emt 0:00:07]} Qc6+ {[%emt 0:00:08]} 27. Kg1 {[%emt 0:00:36]} Rf8 {[%emt 0:00:28]} 28. c3 {[%emt 0:01:50] And now Nd4 would win.} Nd5 {[%emt 0:03:31]} 29. R7e5 {[%emt 0:01:28]} Nf6 {[%emt 0:00:14]} 30. Nd4 {[%emt 0:00:30]} Qc4 {[%emt 0:00:50]} 31. a3 {[%emt 0:00:36]} Rac8 {[%emt 0:00:32]} (31... Qc7 {keeps fighting.} 32. Re7 Qb6) 32. Re7 {[%emt 0:02:26]} Rc7 {[%emt 0:01:38]} 33. Qb5 {[%emt 0:01:11]} Qxb5 {[%emt 0:01:43]} 34. Nxb5 {[%emt 0:00:05]} Rxe7 {[%emt 0:00:05]} 35. Rxe7 {[%emt 0:00:05]} a6 {[%emt 0:00:03] [#]} 36. Nd6 {[%emt 0:00:19]} ({Not} 36. Rxb7 axb5 37. Rxb5 Rc8 $11) 36... b6 {[%emt 0:00:10]} 37. Rb7 {[%emt 0:00:20]} Nd5 {[%emt 0:00:27]} (37... b5 {was worth a try.} 38. Ra7 Ne8) 38. c4 {[%emt 0:00:13] Weighted Error Value: White=0.18 (very precise) /Black=0.32} 1-0

[Event "Croatian Team Cup Final 2022"]
[Site "Vodice"]
[Date "2022.05.18"]
[Round "1.16"]
[White "Mladenovic, Velisa"]
[Black "Saric, Luka"]
[Result "1-0"]
[ECO "A48"]
[WhiteElo "2070"]
[BlackElo "2169"]
[Annotator "TA"]
[PlyCount "97"]
[EventDate "2022.05.18"]
[EventType "team-tourn"]
[EventCountry "CRO"]
[SourceTitle "playchess.com"]
[Source "ChessBase"]
[SourceQuality "1"]
[TimeControl "40/5400+30:1800+30"]

{[%evp 9,97,31,23,-16,2,-24,2,-80,-77,-93,-68,-170,-165,-154,-38,-125,-135,-114,-137,-132,-139,-129,-128,-131,-125,-127,-111,-119,-108,-118,-98,-142,-95,-138,-147,-166,-157,-166,-144,-252,-180,-184,-173,-172,-168,-180,43,43,43,44,45,42,67,65,110,104,117,91,91,55,66,0,95,100,111,119,232,217,224,157,235,213,421,414,399,399,750,799,1544,1563,29976,29977,5106,5093,29985,29986,29985,29975,29983,29984]} 1. d4 {[%emt 0:00:15]} Nf6 {[%emt 0:00:10]} 2. Bf4 {[%emt 0:00:30]} c5 {[%emt 0:01:43]} 3. c3 {[%emt 0:01:09]} b6 {[%emt 0:00:51]} 4. Nf3 {[%emt 0:00:19]} g6 {[%emt 0:00:16]} 5. Nbd2 {[%emt 0:00:21]} Bb7 {[%emt 0:00:20]} 6. Qc2 {[%emt 0:04:22] A48: 1 d4 Nf6 2 Nf3 g6: Torre, London and Colle Systems.} Bg7 {[%emt 0:08:45]} 7. e4 {[%emt 0:01:33]} O-O {[%emt 0:01:29] [#]} 8. Bc4 $146 {[%emt 0:01:28]} (8. dxc5 $11 bxc5 9. Bd3) ({Predecessor:} 8. dxc5 bxc5 9. Bc4 Nc6 10. O-O Na5 11. Bd3 Rc8 12. Rfe1 c4 13. Bf1 d5 14. exd5 Nxd5 {½-½ (77) Kotlar,A (1949)-Bakhmatov,E (2239) Essen 2002}) 8... cxd4 $17 {[%emt 0:02:23]} 9. Nxd4 {[%emt 0:02:40]} d5 {[%emt 0:03:50]} 10. Bd3 {[%emt 0:09:10] [#]} (10. exd5 $15 Nxd5 11. Bg5) 10... dxe4 $1 $19 {[%emt 0:05:31]} 11. Nxe4 {[%emt 0:02:23] [#]} Qd5 {[%emt 0:06:50]} (11... e5 $1 $17 {[%cal Re5f4]} 12. Bxe5 Nxe4 13. Bxe4 Bxe4 14. Qxe4 Nd7) 12. Bxb8 {[%emt 0:07:33]} (12. f3 $15) 12... Nxe4 {[%emt 0:05:13]} 13. Bxe4 {[%emt 0:03:42]} Qxe4+ {[%emt 0:00:06]} 14. Qxe4 {[%emt 0:01:09]} Bxe4 {[%emt 0:00:05] A strong pair of Bishops.} 15. f3 {[%emt 0:02:28]} Bxf3 {[%emt 0:03:58]} (15... Raxb8 16. fxe4 Rfc8 17. Nb3 $15) 16. Nxf3 {[%emt 0:07:26]} Raxb8 {[%emt 0:00:30]} 17. O-O-O {[%emt 0:00:20]} Rb7 {[%emt 0:04:36] Prevents Rd7.} 18. Rhe1 {[%emt 0:01:15]} Re8 {[%emt 0:01:16]} 19. Kc2 {[%emt 0:00:36]} e5 {[%emt 0:02:14]} 20. Rd5 {[%emt 0:02:59]} e4 {[%emt 0:04:32]} (20... f5 $142 21. g3 (21. Nxe5 $2 Rbe7 $19) 21... e4) 21. Nd4 {[%emt 0:04:40]} f5 {[%emt 0:04:11]} 22. a4 {[%emt 0:01:11]} Bxd4 {[%emt 0:06:26]} 23. Rxd4 {[%emt 0:01:29][%mdl 4096] Endgame KRR-KRR} Kf7 {[%emt 0:01:31]} 24. b4 {[%emt 0:00:15]} (24. Red1 $17) 24... Rc7 {[%emt 0:03:00]} 25. c4 {[%emt 0:01:55]} Kf6 {[%emt 0:07:59]} 26. Kc3 {[%emt 0:00:53]} Kg5 {[%emt 0:06:01]} 27. Rd5 {[%emt 0:01:14]} Rec8 $2 {[%emt 0:00:34]} ({Better is} 27... Kg4 $19 {aiming for ...f4.} 28. Kd4 f4) 28. Rxe4 $1 $14 {[%emt 0:00:30]} Kf6 {[%emt 0:04:26]} 29. Rd6+ {[%emt 0:01:01]} Kf7 {[%emt 0:00:48]} 30. Red4 {[%emt 0:00:21]} Ke7 {[%emt 0:00:27][%cal Oc7c4]} 31. R6d5 {[%emt 0:00:23]} Ke6 {[%emt 0:01:26]} 32. a5 {[%emt 0:00:35] Black must now prevent axb6.} Ke7 {[%emt 0:01:17]} 33. axb6 {[%emt 0:00:22]} axb6 {[%emt 0:00:01]} 34. Re5+ {[%emt 0:02:25]} Kf6 {[%emt 0:00:31]} 35. Red5 {[%emt 0:03:19] And now Rd6+ would win. White is more active.} Ke7 {[%emt 0:02:35]} 36. b5 {[%emt 0:03:14]} Ra8 {[%emt 0:09:18]} 37. Rd6 {[%emt 0:01:09]} Rb8 {[%emt 0:00:58]} (37... Rb7 $16) 38. Kb4 $18 {[%emt 0:00:33]} Rcb7 {[%emt 0:02:06]} 39. h4 {[%emt 0:01:54][%cal Bh2h4,Bh4h5][%mdl 32]} Rc7 {[%emt 0:00:51]} (39... Ra8 $16 {is a better defense.}) 40. h5 {[%emt 0:00:00]} g5 {[%emt 0:00:00]} (40... gxh5 {might work better.} 41. Rh6 Ke8) 41. Rh6 {[%emt 0:02:08]} Ke8 {[%emt 0:01:22]} 42. Rdd6 {[%emt 0:03:15]} Rbc8 $2 {[%emt 0:01:13]} (42... Rcb7 43. Rhe6+ Kf8 44. Rf6+ Kg8 45. Rxf5 Rg7) 43. Rc6 {[%emt 0:01:18]} Rxc6 {[%emt 0:02:22]} 44. bxc6 {[%emt 0:00:15][%cal Bb5c6,Bc6c7][%mdl 32] Threatens to win with Kb5. KR-KR} Rc7 {[%emt 0:04:05]} 45. Kb5 {[%emt 0:00:14]} Kd8 {[%emt 0:00:15]} 46. Rf6 {[%emt 0:02:09]} f4 {[%emt 0:00:20]} 47. Kxb6 {[%emt 0:00:33] White mates.} Rg7 {[%emt 0:00:31]} 48. Rf8+ {[%emt 0:01:04]} Ke7 {[%emt 0:00:00]} 49. c7 {[%emt 0:00:23] White used his chance.  Weighted Error Value: White=0.25 (precise) /Black=0.61} 1-0

[Event "Croatian Team Cup Final 2022"]
[Site "Vodice"]
[Date "2022.05.18"]
[Round "1.17"]
[White "Grandic, Zvjezdan"]
[Black "Lalic, Bogdan"]
[Result "0-1"]
[ECO "B22"]
[WhiteElo "2121"]
[BlackElo "2411"]
[Annotator "TA"]
[PlyCount "44"]
[EventDate "2022.05.18"]
[EventType "team-tourn"]
[EventCountry "CRO"]
[SourceTitle "playchess.com"]
[Source "ChessBase"]
[SourceQuality "1"]
[TimeControl "40/5400+30:1800+30"]

{[%evp 11,44,-14,-10,-4,-14,-4,-10,-81,-64,-63,-52,-52,-51,-101,-89,-129,-63,-58,-45,-30,-28,-83,-95,-112,-110,-169,-160,-234,-239,-1208,-1185,-1160,-1127,-1350,-1297]} 1. e4 {[%emt 0:00:30]} c6 {[%emt 0:05:32]} 2. c4 {[%emt 0:03:52]} d5 {[%emt 0:00:12]} 3. cxd5 {[%emt 0:01:58]} cxd5 {[%emt 0:00:06]} 4. e5 {[%emt 0:00:17]} Nc6 {[%emt 0:00:43]} 5. d4 {[%emt 0:01:29]} Bf5 {[%emt 0:00:15]} 6. Nc3 {[%emt 0:08:23]} e6 {[%emt 0:03:11]} 7. Be3 {[%emt 0:01:43] B22: Sicilian: 2 c3.} Nge7 {[%emt 0:00:39] [#]} 8. g4 $146 {[%emt 0:02:20]} ({Predecessor:} 8. Rc1 h5 9. Nb5 Nc8 10. Bd3 Bb4+ 11. Kf1 Bxd3+ 12. Qxd3 a6 13. Nc3 Nb6 14. h4 Qd7 {1-0 (31) Mallik,A (1906)-Uddin,S (2075) Dhaka 2016}) 8... Bg6 {[%emt 0:00:13]} 9. Bd3 {[%emt 0:00:10]} (9. Be2 $1 $11) 9... Bxd3 {[%emt 0:02:16]} 10. Qxd3 {[%emt 0:01:11]} h5 {[%emt 0:00:10]} 11. g5 {[%emt 0:03:01]} Nf5 {[%emt 0:00:50]} 12. g6 {[%emt 0:01:50]} (12. Nf3 $15) 12... fxg6 {[%emt 0:00:48]} 13. Nf3 {[%emt 0:00:17] [#]} Bb4 {[%emt 0:01:59]} (13... Be7 $1 $17 {And now ...0-0 would win.} 14. Rg1 O-O 15. Rxg6 Qe8) 14. Rg1 $15 {[%emt 0:02:51]} Bxc3+ {[%emt 0:00:05]} 15. bxc3 {[%emt 0:00:28]} Nce7 {[%emt 0:00:04]} 16. Bc1 {[%emt 0:10:22]} (16. Qb5+ $11 {remains equal.} Qd7 17. Qxd7+ Kxd7 18. Rb1) 16... Rc8 $17 {[%emt 0:01:26][%cal Ba8c8,Bc8c6,Bc6c3][%mdl 32]} 17. Ba3 {[%emt 0:01:24]} Rc6 {[%emt 0:00:55]} 18. Bd6 {[%emt 0:02:00]} (18. Kf1 $17) 18... O-O {[%emt 0:04:48]} 19. Bxe7 {[%emt 0:02:13]} (19. Bc5 $17 {keeps fighting.}) 19... Qxe7 $19 {[%emt 0:08:58]} ({Avoid the trap} 19... Nxe7 $2 20. Rc1) 20. Rxg6 $2 {[%emt 0:02:08] [#]} (20. a4) 20... Qa3 {[%emt 0:00:06] Black is clearly winning.} 21. Ng5 {[%emt 0:08:52]} Rxc3 {[%emt 0:02:30]} 22. Qd1 {[%emt 0:00:06]} Qb4 {[%emt 0:05:48] Weighted Error Value: White=0.83/Black=0.08 (flawless)} 0-1

[Event "Croatian Team Cup Final 2022"]
[Site "Vodice"]
[Date "2022.05.18"]
[Round "1.18"]
[White "Zaja, Ivan"]
[Black "Matic, Zeljko"]
[Result "1-0"]
[ECO "B06"]
[WhiteElo "2449"]
[BlackElo "2152"]
[Annotator "TA"]
[PlyCount "45"]
[EventDate "2022.05.18"]
[EventType "team-tourn"]
[EventCountry "CRO"]
[SourceTitle "playchess.com"]
[Source "ChessBase"]
[SourceQuality "1"]
[TimeControl "40/5400+30:1800+30"]

{[%evp 9,45,28,43,38,52,46,99,79,88,72,136,54,100,75,134,134,127,96,126,84,96,89,103,80,159,145,194,181,192,171,183,195,247,253,266,264,231,202]} 1. d4 {[%emt 0:00:06]} g6 {[%emt 0:01:08]} 2. e4 {[%emt 0:00:09]} Bg7 {[%emt 0:00:04]} 3. Nc3 {[%emt 0:00:04]} d6 {[%emt 0:02:48]} 4. Be3 {[%emt 0:01:00]} a6 {[%emt 0:00:05]} 5. g4 {[%emt 0:00:18]} b5 {[%emt 0:01:28]} 6. Bg2 {[%emt 0:01:03][%cal Oe4e5] B06: Modern Defence.} Bb7 {[%emt 0:00:06]} 7. h4 {[%emt 0:00:54]} h5 {[%emt 0:05:16]} (7... Nd7 $14) 8. gxh5 $16 {[%emt 0:17:29] White is better.} Rxh5 {[%emt 0:00:21] [#]} 9. Nf3 $146 {[%emt 0:02:29]} ({Predecessor:} 9. Nge2 Nf6 10. Ng3 Rh7 11. h5 b4 12. Nd5 Bxd5 13. exd5 gxh5 14. Nxh5 Rxh5 15. Rxh5 Nxh5 16. Qxh5 {1-0 (28) Indjic,A (2604)-Hess,R (2591) Chess.com INT 2022}) 9... b4 {[%emt 0:23:21]} ({Black should play} 9... c5) 10. Nd5 {[%emt 0:00:19]} (10. Ne2 $1 $16) 10... Bxd5 {[%emt 0:00:33]} (10... Nf6 $14 {was preferrable.}) 11. exd5 {[%emt 0:00:06]} Nf6 {[%emt 0:00:19]} (11... c5 $142) 12. Ng5 {[%emt 0:00:52]} Nbd7 {[%emt 0:00:09]} 13. Bf3 {[%emt 0:09:43][%cal Og5e6]} Rh8 {[%emt 0:01:26]} 14. Qd3 {[%emt 0:05:07][%cal Og5e6] And now Ne6! would win.} Qb8 {[%emt 0:14:46]} 15. c4 {[%emt 0:28:31] Inhibits Qb5. White is more active.} bxc3 {[%emt 0:00:41]} 16. bxc3 {[%emt 0:00:05][%cal Bb2c3,Bc3c4][%mdl 32]} ({Much weaker is} 16. Qxc3 Qb7 $15) 16... Qb5 {[%emt 0:15:41] [#]} ({Better is} 16... Qc8) 17. c4 $1 {[%emt 0:01:31]} Qa5+ {[%emt 0:02:41]} ({Less strong is} 17... Qb2 18. O-O Qb8 19. Rab1 $16) (17... Qb7 $16 18. Rb1 Qc8) 18. Bd2 {[%emt 0:01:09]} Qb6 {[%emt 0:00:46]} 19. Rb1 $36 {[%emt 0:00:56][%mdl 2048] Keeping Black busy.} Qa7 {[%emt 0:00:09]} 20. Kf1 {[%emt 0:08:27]} Rb8 {[%emt 0:06:03] [#]} (20... a5 {was worth a try.} 21. Rb5 Nh5) 21. Re1 $1 $18 {[%emt 0:02:45]} Nh5 {[%emt 0:03:12]} 22. Bc3 {[%emt 0:04:30] aiming for Qe4. This bishop pair is nice.} Ndf6 {[%emt 0:02:16] Inhibits Qe4.} 23. Qe3 {[%emt 0:01:18] Weighted Error Value: White=0.11 (very precise) /Black=0.26 (precise)} 1-0

[Event "Croatian Team Cup Final 2022"]
[Site "Vodice"]
[Date "2022.05.18"]
[Round "1.19"]
[White "Miletic, Josip"]
[Black "Kovacevic, Blazimir"]
[Result "0-1"]
[ECO "A25"]
[WhiteElo "2158"]
[BlackElo "2401"]
[Annotator "TA"]
[PlyCount "142"]
[EventDate "2022.05.18"]
[EventType "team-tourn"]
[EventCountry "CRO"]
[SourceTitle "playchess.com"]
[Source "ChessBase"]
[SourceQuality "1"]
[TimeControl "40/5400+30:1800+30"]

{[%evp 9,142,18,16,14,15,4,12,7,0,-17,0,0,6,0,0,-39,-18,-40,-6,-22,-20,-22,-4,-50,-12,-34,-7,-27,-9,-26,-26,-25,-26,-27,-27,-25,-33,-28,-28,-31,-22,-32,-30,-43,-37,-56,-43,-33,-37,-41,-28,-33,-29,-30,-21,-76,-47,-43,-32,-106,-58,-52,0,0,0,-5,0,0,-2,-852,-724,-29974,-29976,-29975,-252,-241,-226,-288,-288,-202,-427,-461,-435,-557,-223,-856,-840,-855,-824,-1166,-1095,-1439,-1379,-1488,-1498,-29974,-29977,-29977,-29978,-29977,-29977,-29979,-29980,-29984,-29985,-29986,-29987,-29987,-29978,-29983,-29979,-29979,-29980,-29983,-29981,-29983,-29984,-29974,-29975,-29982,-29983,-29989,-29984,-29989,-29990,-29990,-29991,-29991,-29992,-29992,-29993,-29993,-29994,-29994,-29995]} 1. g3 {[%emt 0:26:53]} e5 {[%emt 0:01:57]} 2. Bg2 {[%emt 0:00:04]} Nc6 {[%emt 0:00:16]} 3. c4 {[%emt 0:00:55]} Bc5 {[%emt 0:00:51]} 4. Nc3 {[%emt 0:00:54]} a6 {[%emt 0:00:54]} 5. d3 {[%emt 0:02:50]} d6 {[%emt 0:00:15]} 6. Nf3 {[%emt 0:02:36] A25: English Opening vs King's Indian with ...Nc6 but without early d3.} Nge7 {[%emt 0:01:43]} 7. O-O {[%emt 0:00:50]} O-O {[%emt 0:03:07]} 8. a3 {[%emt 0:01:24] The position is equal.} Ba7 {[%emt 0:02:55]} 9. Be3 {[%emt 0:02:57] [#]} Bxe3 $146 {[%emt 0:02:05]} ({Predecessor:} 9... Bg4 10. Bxa7 Rxa7 11. h3 Bh5 12. g4 Bg6 13. e4 h5 14. Nh4 hxg4 15. hxg4 Nd4 {½-½ (28) Sinanovic,M (2353)-Stojanovic,D (2481) Jahorina 2018}) 10. fxe3 {[%emt 0:00:42]} f6 {[%emt 0:03:38]} 11. b4 {[%emt 0:06:03]} Be6 {[%emt 0:02:23]} 12. Ne4 {[%emt 0:00:22]} Qd7 {[%emt 0:03:15]} 13. Nf2 {[%emt 0:00:07]} Nd8 {[%emt 0:02:37]} 14. Qd2 {[%emt 0:02:56]} c6 {[%emt 0:01:39]} 15. e4 {[%emt 0:01:00]} b5 {[%emt 0:09:27]} 16. Rfc1 {[%emt 0:01:56]} (16. c5 $11 {is superior.}) 16... Nf7 {[%emt 0:03:40]} 17. e3 {[%emt 0:05:53]} Rfd8 {[%emt 0:11:28]} 18. Bf1 {[%emt 0:01:04]} Qa7 {[%emt 0:08:27]} 19. a4 {[%emt 0:07:53]} bxc4 {[%emt 0:05:52]} 20. dxc4 {[%emt 0:01:09]} a5 {[%emt 0:00:05]} 21. b5 {[%emt 0:01:15]} Nc8 {[%emt 0:02:06][%cal Be7c8,Bc8b6,Bb6d7,Bd7c5,Bc5e4][%mdl 32]} 22. Bh3 {[%emt 0:04:33]} Bxh3 {[%emt 0:01:55]} 23. Nxh3 {[%emt 0:00:03]} Nb6 {[%emt 0:00:17]} 24. Nf2 {[%emt 0:00:31]} ({Don't play} 24. bxc6 Rac8 25. Qd3 Rxc6 $17) 24... Rac8 {[%emt 0:02:17]} 25. Qa2 {[%emt 0:01:17]} Nd7 {[%emt 0:04:39]} 26. Qa3 {[%emt 0:02:32]} Nc5 {[%emt 0:04:35]} 27. Kg2 {[%emt 0:00:17]} Qa8 {[%emt 0:02:31]} 28. Nd2 {[%emt 0:02:30]} Ng5 {[%emt 0:00:27][%cal Of6f5]} 29. h4 {[%emt 0:00:46] [#]} Ngxe4 {[%emt 0:01:25]} 30. Nfxe4 {[%emt 0:07:39]} (30. Ndxe4 Nxe4) 30... cxb5 {[%emt 0:02:07]} 31. cxb5 {[%emt 0:01:21]} Nxe4 {[%emt 0:00:49]} 32. Qb3+ {[%emt 0:08:25]} (32. Qa2+ $11 Kh8 33. Kh2) 32... Kh8 $17 {[%emt 0:00:04]} 33. Nxe4 {[%emt 0:00:23]} Qxe4+ {[%emt 0:00:03]} 34. Kf2 {[%emt 0:00:28]} (34. Kh2 $15) 34... Qf5+ {[%emt 0:05:41]} (34... d5 $17 {And now ...g5 would win.} 35. Qd1 Rb8) 35. Kg2 $15 {[%emt 0:00:44]} g5 {[%emt 0:00:56]} (35... h6 $15 36. Qb1 Qg4) 36. hxg5 $11 {[%emt 0:00:32]} fxg5 {[%emt 0:07:24]} 37. b6 {[%emt 0:01:02]} Qe4+ $40 {[%emt 0:02:40][%mdl 128] Black has some attack.} 38. Kh2 {[%emt 0:02:20] [#] Qf7 is the strong threat.} Rf8 {[%emt 0:01:27] Prevents Qf7.} 39. Rxc8 $4 {[%emt 0:00:45][%mdl 8192] Loses the game.} (39. Qb2 $11) 39... Rxc8 {[%emt 0:00:05][%mdl 4096] Endgame KQR-KQR} 40. Ra2 {[%emt 0:00:00]} Rc1 {[%emt 0:00:00][%csl Gc1][%cal Re4h1]} 41. Rg2 {[%emt 0:02:18]} Qb1 $2 {[%emt 0:16:00]} (41... Qg6 {mates} 42. Rg1 Rc2+ 43. Qxc2 Qxc2+ 44. Rg2 Qb3 45. b7 Qxb7 46. Rd2 Qb4 47. Rd1 Qc5 48. Re1 Qc2+ 49. Kg1 Qxa4 50. Kf1 Qc4+ 51. Kf2 Qb3 52. Kf3 a4 53. Rg1 a3 54. Rf1 a2 55. Kg2 Qb2+ 56. Kh3 a1=Q 57. Rxa1 Qxa1 58. Kh2 g4 59. Kg2 Qa2+ 60. Kh1 h5 61. e4 h4 62. gxh4 g3 63. Kg1 Qh2+ 64. Kf1 Qf2#) 42. Qxb1 $19 {[%emt 0:04:42]} Rxb1 {[%emt 0:00:04] KR-KR} 43. Rc2 {[%emt 0:00:57]} Rxb6 {[%emt 0:00:06]} 44. Rc8+ {[%emt 0:00:03]} (44. Rd2 {was called for.}) 44... Kg7 {[%emt 0:00:06]} 45. Ra8 {[%emt 0:00:05]} Kf6 {[%emt 0:06:12]} 46. Rxa5 {[%emt 0:02:32]} Rb3 {[%emt 0:01:42]} (46... Kf5 $142 47. Rb5 Rxb5 48. axb5 Ke6) 47. Ra8 $2 {[%emt 0:00:25]} (47. Rd5) 47... Rxe3 {[%emt 0:00:25]} 48. a5 {[%emt 0:00:01]} Ra3 {[%emt 0:04:05]} 49. g4 {[%emt 0:00:43]} Ke6 {[%emt 0:00:38]} 50. a6 {[%emt 0:00:34]} Kd5 {[%emt 0:00:04] Hoping for ...Ke4.} 51. a7 {[%emt 0:00:09]} Ke4 {[%emt 0:00:06] ( -> ...d5)} 52. Kg2 {[%emt 0:00:13]} d5 {[%emt 0:00:08] Black mates.} 53. Kf2 {[%emt 0:00:19]} d4 {[%emt 0:00:11]} 54. Ke2 {[%emt 0:00:21]} Ra2+ {[%emt 0:00:13]} 55. Kf1 {[%emt 0:00:40]} h6 {[%emt 0:00:47]} 56. Kg1 {[%emt 0:00:57]} d3 {[%emt 0:01:21]} 57. Kf1 {[%emt 0:00:12]} Ke3 {[%emt 0:00:06]} 58. Re8 {[%emt 0:00:24]} Ra1+ {[%emt 0:00:04]} 59. Kg2 {[%emt 0:00:07]} Rxa7 {[%emt 0:00:42]} 60. Rxe5+ {[%emt 0:00:02]} Kd4 {[%emt 0:00:24]} 61. Re8 {[%emt 0:00:28]} d2 {[%emt 0:01:27]} 62. Rd8+ {[%emt 0:00:25]} Ke3 {[%emt 0:00:07]} 63. Re8+ {[%emt 0:01:08]} Kf4 {[%emt 0:00:52]} 64. Rd8 {[%emt 0:00:03]} Ra2 {[%emt 0:00:23]} 65. Kh3 {[%emt 0:00:47]} Ra3+ {[%emt 0:01:08]} 66. Kh2 {[%emt 0:00:13]} Ke3 {[%emt 0:00:04]} 67. Re8+ {[%emt 0:00:44]} Kf2 {[%emt 0:00:29]} 68. Rd8 {[%emt 0:00:48]} Ke2 {[%emt 0:00:06]} 69. Re8+ {[%emt 0:00:06]} Re3 {[%emt 0:00:07]} 70. Rf8 {[%emt 0:00:26]} d1=Q {[%emt 0:00:46]} 71. Rf2+ {[%emt 0:00:03]} Kd3 {[%emt 0:00:06] Weighted Error Value: White=0.82/Black=0.27 (precise)} 0-1